lending/lending_fUSD_20250131
["ID","MTS","AMOUNT","RATE_DAILY","PERIOD"]
[351142675,1738349457782,-500.0,0.00017806,2]
[351142676,1738349457791,-500.0,0.00017806,2]
[351142677,1738349457800,-533.98,0.00017806,2]
[351142678,1738349457809,-238.89,0.00017806,2]
[351142679,1738349457818,-500.0,0.00017806,2]
[351142680,1738349457827,-500.0,0.00017806,2]
[351142681,1738349457836,-500.0,0.00017806,2]
[351142682,1738349457845,-500.0,0.00017806,2]
[351142683,1738349457853,-482.18,0.00017806,2]
[351142684,1738349457862,-500.0,0.00017806,2]
[351142685,1738349457873,-500.0,0.00017806,2]
[351142686,1738349457882,-1563.77,0.00017806,2]
[351142687,1738349457892,-500.0,0.00017807,2]
[351142688,1738349457906,-500.0,0.00017807,2]
[351142689,1738349457915,-500.0,0.00017807,2]
[351142690,1738349457924,-500.0,0.00017807,2]
[351142691,1738349457935,-500.0,0.00017807,2]
[351142692,1738349457944,-239.13724922,0.00017807,2]
[351142693,1738349457954,-500.0,0.00017807,2]
[351142694,1738349457964,-500.0,0.00017807,2]
[351142695,1738349457976,-500.0,0.00017807,2]
[351142696,1738349457986,-500.0,0.00017807,2]
[351142697,1738349457995,-500.0,0.00017807,2]
[351142698,1738349458005,-500.0,0.00017807,2]
[351142699,1738349458015,-500.0,0.00017807,2]
[351142700,1738349458024,-500.0,0.00017807,2]
[351142701,1738349458034,-500.0,0.00017807,2]
[351142702,1738349458043,-364.172778,0.00017807,2]
[351142703,1738349458052,-500.0,0.00017807,2]
[351142704,1738349458062,-500.0,0.00017807,2]
[351142705,1738349458071,-500.0,0.00017807,2]
[351142706,1738349458080,-500.0,0.00017807,2]
[351142707,1738349458090,-500.0,0.00017807,2]
[351142708,1738349458099,-500.0,0.00017807,2]
[351142709,1738349458108,-500.0,0.00017807,2]
[351142710,1738349458119,-364.82279278,0.00017807,2]
[351142711,1738349458129,-500.0,0.00017807,2]
[351142712,1738349458138,-500.0,0.00017807,2]
[351142713,1738349458147,-500.0,0.00017807,2]
[351142714,1738349458157,-500.0,0.00017807,2]
[351142715,1738349458166,-500.0,0.00017807,2]
[351142716,1738349458175,-500.0,0.00017807,2]
[351142717,1738349458185,-500.0,0.00017807,2]
[351142718,1738349458194,-702.2,0.00017807,2]
[351142719,1738349458203,-500.0,0.00017807,2]
[351142720,1738349458212,-500.0,0.00017807,2]
[351142721,1738349458222,-500.0,0.00017807,2]
[351142722,1738349458231,-500.0,0.00017807,2]
[351142723,1738349458240,-500.0,0.00017807,2]
[351142724,1738349458249,-555.25,0.00017807,2]
[351142725,1738349458258,-500.0,0.00017807,2]
[351142726,1738349458268,-500.0,0.00017807,2]
[351142727,1738349458277,-237.71708459,0.00017807,2]
[351142728,1738349458286,-500.0,0.00017807,2]
[351142729,1738349458295,-934.8,0.00017807,2]
[351142730,1738349458304,-500.0,0.00017807,2]
[351142731,1738349458314,-500.0,0.00017807,2]
[351142732,1738349458323,-500.0,0.00017808,2]
[351142733,1738349458332,-500.0,0.00017808,2]
[351142734,1738349458341,-447.17283292,0.00017808,2]
[351142735,1738349458350,-500.0,0.00017808,2]
[351142736,1738349458361,-324.68229934,0.00017808,2]
[351142737,1738349458374,-500.0,0.00017808,2]
[351142738,1738349458382,-500.0,0.00017808,2]
[351142739,1738349458392,-500.0,0.00017808,2]
[351142740,1738349458401,-500.0,0.00017808,2]
[351142741,1738349458410,-500.0,0.00017808,2]
[351142742,1738349458419,-500.0,0.00017808,2]
[351142743,1738349458428,-500.0,0.00017808,2]
[351142744,1738349458437,-626.85,0.00017808,2]
[351142745,1738349458447,-500.0,0.00017808,2]
[351142746,1738349458456,-500.0,0.00017808,2]
[351142747,1738349458465,-500.0,0.00017808,2]
[351142748,1738349458474,-338.20105058,0.00017808,2]
[351142749,1738349458483,-500.0,0.00017808,2]
[351142750,1738349458493,-500.0,0.00017808,2]
[351142751,1738349458502,-500.0,0.00017808,2]
[351142752,1738349458511,-500.0,0.00017808,2]
[351142753,1738349458521,-500.0,0.00017808,2]
[351142754,1738349458530,-500.0,0.00017808,2]
[351142755,1738349458539,-500.0,0.00017808,2]
[351142756,1738349458548,-500.0,0.00017808,2]
[351142757,1738349458557,-500.0,0.00017808,2]
[351142758,1738349458567,-578.08,0.00017808,2]
[351142759,1738349458577,-239.53000439,0.00017844,2]
[351142760,1738349458586,-500.0,0.00017844,2]
[351142761,1738349458595,-500.0,0.00017844,2]
[351142762,1738349458604,-501.67,0.00017844,2]
[351142763,1738349458613,-500.0,0.00017844,2]
[351142764,1738349458625,-500.0,0.00017844,2]
[351142765,1738349458634,-850.9,0.00017844,2]
[351142766,1738349458642,-195.68,0.00017844,2]
[351142767,1738349458651,-606.82,0.00017844,2]
[351142768,1738349458661,-500.0,0.00017844,2]
[351142769,1738349458670,-510.62,0.00017844,2]
[351142770,1738349458679,-544.88,0.00017877,2]
[351142771,1738349458688,-2293.73340376,0.00017934,2]
[351142772,1738349458697,-190.197,0.00017936,2]
[351142773,1738349458707,-4335.227,0.00017936,2]
[351142774,1738349458716,-500.0,0.00017941,2]
[351142775,1738349458725,-500.0,0.00017942,2]
[351142776,1738349458735,-500.0,0.00017942,2]
[351142777,1738349458743,-500.0,0.00017942,2]
[351142778,1738349458753,-500.0,0.00017942,2]
[351142779,1738349458762,-500.0,0.00017942,2]
[351142780,1738349458771,-500.0,0.00017942,2]
[351142781,1738349458779,-500.0,0.00017942,2]
[351142782,1738349458789,-500.0,0.00017942,2]
[351142783,1738349458797,-294.7,0.00017943,2]
[351142784,1738349458814,-500.0,0.00017943,2]
[351142785,1738349458825,-500.0,0.00017943,2]
[351142786,1738349458834,-533.98,0.00017943,2]
[351142787,1738349458843,-500.0,0.00017943,2]
[351142788,1738349458852,-500.0,0.00017943,2]
[351142789,1738349458861,-500.0,0.00017943,2]
[351142790,1738349458872,-500.0,0.00017943,2]
[351142791,1738349458881,-500.0,0.00017943,2]
[351142792,1738349458891,-500.0,0.00017943,2]
[351142793,1738349458903,-1563.77,0.00017943,2]
[351142794,1738349458913,-500.0,0.00017944,2]
[351142795,1738349458922,-500.0,0.00017944,2]
[351142796,1738349458934,-500.0,0.00017944,2]
[351142797,1738349458944,-500.0,0.00017944,2]
[351142798,1738349458953,-500.0,0.00017944,2]
[351142799,1738349458963,-192.68734361,0.00017944,2]
[351142800,1738349458974,-500.0,0.00017944,2]
[351142801,1738349458983,-500.0,0.00017944,2]
[351142802,1738349459000,-500.0,0.00017944,2]
[351142803,1738349459010,-500.0,0.00017944,2]
[351142804,1738349459021,-225.27,0.00017944,2]
[351142805,1738349459032,-500.0,0.00017944,2]
[351142806,1738349459041,-500.0,0.00017944,2]
[351142807,1738349459050,-500.0,0.00017944,2]
[351142808,1738349459060,-500.0,0.00017944,2]
[351142809,1738349459069,-500.0,0.00017944,2]
[351142810,1738349459079,-500.0,0.00017944,2]
[351142811,1738349459088,-500.0,0.00017944,2]
[351142812,1738349459098,-500.0,0.00017944,2]
[351142813,1738349459107,-500.0,0.00017944,2]
[351142814,1738349459117,-500.0,0.00017944,2]
[351142815,1738349459126,-500.0,0.00017944,2]
[351142816,1738349459136,-500.0,0.00017944,2]
[351142817,1738349459145,-500.0,0.00017944,2]
[351142818,1738349459154,-500.0,0.00017944,2]
[351142819,1738349459164,-702.2,0.00017944,2]
[351142820,1738349459173,-500.0,0.00017944,2]
[351142821,1738349459182,-500.0,0.00017944,2]
[351142822,1738349459192,-500.0,0.00017944,2]
[351142823,1738349459201,-332.5,0.00017944,2]
[351142824,1738349459210,-587.67,0.00017944,2]
[351142825,1738349459219,-500.0,0.00017944,2]
[351142826,1738349459230,-500.0,0.00017944,2]
[351142827,1738349459240,-934.8,0.00017944,2]
[351142828,1738349459249,-500.0,0.00017944,2]
[351142829,1738349459258,-182.06694991,0.00017944,2]
[351142830,1738349459279,-317.93305009,0.00017944,2]
[351142831,1738349459289,-95.86591991,0.00017945,2]
[351142832,1738349459382,-500.0,0.00016474,2]
[351142833,1738349459391,-500.0,0.00016574,2]
[351142834,1738349459403,-337.9175224,0.00016574,2]
[351142835,1738349459414,-307.69,0.00016611,2]
[351142836,1738349459423,-150.0,0.00017284,2]
[351142837,1738349459433,-404.13408009,0.00017945,2]
[351142838,1738349459443,-500.0,0.00017945,2]
[351142839,1738349459453,-320.25839751,0.00017945,2]
[351142840,1738349459465,-179.74160249,0.00017945,2]
[351142841,1738349459478,-500.0,0.00017945,2]
[351142842,1738349459488,-500.0,0.00017945,2]
[351142843,1738349459498,-472.75839751,0.00017945,2]
[351142844,1738349459509,-27.24160249,0.00017945,2]
[351142845,1738349459518,-500.0,0.00017945,2]
[351142846,1738349459527,-500.0,0.00017945,2]
[351142847,1738349459536,-500.0,0.00017945,2]
[351142848,1738349459546,-500.0,0.00017945,2]
[351142849,1738349459557,-626.85,0.00017945,2]
[351142850,1738349459567,-500.0,0.00017945,2]
[351142851,1738349459576,-260.38876177,0.00017945,2]
[351142852,1738349459586,-500.0,0.00017945,2]
[351142853,1738349459595,-500.0,0.00017945,2]
[351142854,1738349459606,-500.0,0.00017945,2]
[351142855,1738349459617,-500.0,0.00017945,2]
[351142856,1738349459626,-500.0,0.00017945,2]
[351142857,1738349459636,-187.34320484,0.00017945,2]
[351142858,1738349459645,-500.0,0.00017945,2]
[351142859,1738349459655,-500.0,0.00017945,2]
[351142860,1738349459664,-500.0,0.00017945,2]
[351142861,1738349459673,-171.52973729,0.00017945,2]
[351142862,1738349459682,-500.0,0.00017981,2]
[351142863,1738349459692,-500.0,0.00017981,2]
[351142864,1738349459702,-501.67,0.00017981,2]
[351142865,1738349459711,-500.0,0.00017981,2]
[351142866,1738349459720,-500.0,0.00017981,2]
[351142867,1738349459730,-850.9,0.00017981,2]
[351142868,1738349459739,-500.0,0.00017981,2]
[351142869,1738349459748,-510.62,0.00017981,2]
[351142870,1738349459757,-1000.0,0.00017987,2]
[351142871,1738349459767,-50000.0,0.00018,2]
[351142872,1738349459776,-544.88,0.00018014,2]
[351142873,1738349459785,-500.0,0.00018018,2]
[351142874,1738349459795,-500.0,0.00018018,2]
[351142875,1738349459805,-1000.0,0.0001804,2]
[351142876,1738349459814,-500.0,0.00018078,2]
[351142877,1738349459824,-500.0,0.00018079,2]
[351142878,1738349459835,-500.0,0.00018079,2]
[351142879,1738349459845,-500.0,0.00018079,2]
[351142880,1738349459857,-500.0,0.00018079,2]
[351142881,1738349459869,-500.0,0.00018079,2]
[351142882,1738349459879,-500.0,0.00018079,2]
[351142883,1738349459890,-500.0,0.0001808,2]
[351142884,1738349459902,-500.0,0.0001808,2]
[351142885,1738349459912,-533.98,0.0001808,2]
[351142886,1738349459922,-500.0,0.0001808,2]
[351142887,1738349459933,-500.0,0.0001808,2]
[351142888,1738349459943,-500.0,0.0001808,2]
[351142889,1738349459952,-500.0,0.0001808,2]
[351142890,1738349459961,-500.0,0.0001808,2]
[351142891,1738349459971,-500.0,0.0001808,2]
[351142892,1738349459981,-1563.77,0.0001808,2]
[351142893,1738349459990,-500.0,0.00018081,2]
[351142894,1738349460000,-500.0,0.00018081,2]
[351142895,1738349460010,-500.0,0.00018081,2]
[351142896,1738349460021,-500.0,0.00018081,2]
[351142897,1738349460030,-500.0,0.00018081,2]
[351142898,1738349460040,-500.0,0.00018081,2]
[351142899,1738349460050,-500.0,0.00018081,2]
[351142900,1738349460060,-500.0,0.00018081,2]
[351142901,1738349460070,-500.0,0.00018081,2]
[351142902,1738349460080,-500.0,0.00018081,2]
[351142903,1738349460089,-500.0,0.00018081,2]
[351142904,1738349460099,-500.0,0.00018081,2]
[351142905,1738349460108,-500.0,0.00018081,2]
[351142906,1738349460119,-500.0,0.00018081,2]
[351142907,1738349460129,-500.0,0.00018081,2]
[351142908,1738349460139,-500.0,0.00018081,2]
[351142909,1738349460149,-500.0,0.00018081,2]
[351142910,1738349460159,-200.44,0.00018081,2]
[351142911,1738349460169,-500.0,0.00018081,2]
[351142912,1738349460332,-500.0,0.00018081,2]
[351142913,1738349460342,-346.76,0.00018081,2]
[351142914,1738349460352,-500.0,0.00018081,2]
[351142915,1738349460361,-500.0,0.00018081,2]
[351142916,1738349460373,-702.2,0.00018081,2]
[351142917,1738349460382,-358.4,0.00018081,2]
[351142918,1738349460392,-500.0,0.00018081,2]
[351142919,1738349460402,-500.0,0.00018081,2]
[351142920,1738349460411,-281.25110251,0.00018081,2]
[351142921,1738349460421,-500.0,0.00018081,2]
[351142922,1738349460431,-934.8,0.00018081,2]
[351142923,1738349460440,-500.0,0.00018081,2]
[351142924,1738349460449,-500.0,0.00018081,2]
[351142925,1738349460459,-580.99,0.00018082,2]
[351142926,1738349460468,-500.0,0.00018082,2]
[351142927,1738349460478,-500.0,0.00018082,2]
[351142928,1738349460487,-500.0,0.00018082,2]
[351142929,1738349460496,-150.78882251,0.00018082,2]
[351142930,1738349460506,-500.0,0.00018082,2]
[351142931,1738349460516,-500.0,0.00018082,2]
[351142932,1738349460526,-500.0,0.00018082,2]
[351142933,1738349460536,-500.0,0.00018082,2]
[351142934,1738349460545,-500.0,0.00018082,2]
[351142935,1738349460555,-626.85,0.00018082,2]
[351142936,1738349460564,-500.0,0.00018082,2]
[351142937,1738349460574,-623.77141383,0.00018082,2]
[351142938,1738349460584,-500.0,0.00018082,2]
[351142939,1738349460593,-500.0,0.00018082,2]
[351142940,1738349460602,-500.0,0.00018082,2]
[351142941,1738349460612,-500.0,0.00018082,2]
[351142942,1738349460623,-500.0,0.00018082,2]
[351142943,1738349460632,-500.0,0.00018082,2]
[351142944,1738349460642,-500.0,0.00018082,2]
[351142945,1738349460652,-2293.73340376,0.00018107,2]
[351142946,1738349460662,-500.0,0.00018118,2]
[351142947,1738349460671,-500.0,0.00018118,2]
[351142948,1738349460681,-501.67,0.00018118,2]
[351142949,1738349460691,-531.82784744,0.00018118,2]
[351142950,1738349460701,-500.0,0.00018118,2]
[351142951,1738349460710,-850.9,0.00018118,2]
[351142952,1738349460721,-426.98048203,0.00018118,2]
[351142953,1738349460731,-510.62,0.00018118,2]
[351142954,1738349460741,-544.88,0.00018151,2]
[351142955,1738349460751,-500.59009582,0.0001817,2]
[351142956,1738349460760,-500.0,0.00018215,2]
[351142957,1738349460770,-500.0,0.00018216,2]
[351142958,1738349460779,-500.0,0.00018216,2]
[351142959,1738349460788,-500.0,0.00018216,2]
[351142960,1738349460798,-500.0,0.00018216,2]
[351142961,1738349460808,-500.0,0.00018216,2]
[351142962,1738349460817,-500.0,0.00018217,2]
[351142963,1738349460826,-500.0,0.00018217,2]
[351142964,1738349460836,-533.98,0.00018217,2]
[351142965,1738349460845,-458.38,0.00018217,2]
[351142966,1738349460854,-500.0,0.00018217,2]
[351142967,1738349460863,-500.0,0.00018217,2]
[351142968,1738349460875,-500.0,0.00018217,2]
[351142969,1738349460885,-500.0,0.00018217,2]
[351142970,1738349460897,-500.0,0.00018217,2]
[351142971,1738349460907,-1563.77,0.00018217,2]
[351142972,1738349460917,-500.0,0.00018218,2]
[351142973,1738349460926,-500.0,0.00018218,2]
[351142974,1738349460938,-500.0,0.00018218,2]
[351142975,1738349460948,-500.0,0.00018218,2]
[351142976,1738349460959,-500.0,0.00018218,2]
[351142977,1738349460969,-500.0,0.00018218,2]
[351142978,1738349460980,-500.0,0.00018218,2]
[351142979,1738349460991,-500.0,0.00018218,2]
[351142980,1738349461000,-500.0,0.00018218,2]
[351142981,1738349461011,-500.0,0.00018218,2]
[351142982,1738349461021,-500.0,0.00018218,2]
[351142983,1738349461032,-500.0,0.00018218,2]
[351142984,1738349461042,-500.0,0.00018218,2]
[351142985,1738349461052,-500.0,0.00018218,2]
[351142986,1738349461062,-500.0,0.00018218,2]
[351142987,1738349461073,-500.0,0.00018218,2]
[351142988,1738349461082,-500.0,0.00018218,2]
[351142989,1738349461092,-500.0,0.00018218,2]
[351142990,1738349461102,-500.0,0.00018218,2]
[351142991,1738349461113,-500.0,0.00018218,2]
[351142992,1738349461128,-301.38,0.00018218,2]
[351142993,1738349461138,-702.2,0.00018218,2]
[351142994,1738349461148,-589.93,0.00018218,2]
[351142995,1738349461157,-500.0,0.00018218,2]
[351142996,1738349461167,-500.0,0.00018218,2]
[351142997,1738349461177,-934.8,0.00018218,2]
[351142998,1738349461187,-500.0,0.00018218,2]
[351142999,1738349461197,-500.0,0.00018218,2]
[351143000,1738349461207,-199.01,0.00018219,2]
[351143001,1738349461217,-500.0,0.00018219,2]
[351143002,1738349461227,-544.48,0.00018219,2]
[351143003,1738349461238,-500.0,0.00018219,2]
[351143004,1738349461248,-500.0,0.00018219,2]
[351143005,1738349461259,-500.0,0.00018219,2]
[351143006,1738349461270,-500.0,0.00018219,2]
[351143007,1738349461280,-500.0,0.00018219,2]
[351143008,1738349461291,-626.85,0.00018219,2]
[351143009,1738349461301,-500.0,0.00018219,2]
[351143010,1738349461311,-170.89177467,0.00018219,2]
[351143011,1738349461321,-500.0,0.00018219,2]
[351143012,1738349461330,-500.0,0.00018219,2]
[351143013,1738349461340,-500.0,0.00018219,2]
[351143014,1738349461350,-500.0,0.00018219,2]
[351143015,1738349461359,-500.0,0.00018219,2]
[351143016,1738349461371,-500.0,0.00018219,2]
[351143017,1738349461381,-605.31211446,0.00018222,2]
[351143018,1738349461391,-500.0,0.00018255,2]
[351143019,1738349461401,-500.0,0.00018255,2]
[351143020,1738349461410,-501.67,0.00018255,2]
[351143021,1738349461419,-186.41,0.00018255,2]
[351143022,1738349461428,-850.9,0.00018255,2]
[351143023,1738349461438,-510.62,0.00018255,2]
[351143024,1738349461448,-2293.73340376,0.00018279,2]
[351143025,1738349461457,-544.88,0.00018288,2]
[351143026,1738349461467,-500.0,0.00018322,2]
[351143027,1738349461476,-500.0,0.00018352,2]
[351143028,1738349461486,-500.0,0.00018353,2]
[351143029,1738349461496,-500.0,0.00018353,2]
[351143030,1738349461506,-500.0,0.00018353,2]
[351143031,1738349461516,-500.0,0.00018353,2]
[351143032,1738349461526,-500.0,0.00018354,2]
[351143033,1738349461535,-500.0,0.00018354,2]
[351143034,1738349461544,-533.98,0.00018354,2]
[351143035,1738349461553,-500.0,0.00018354,2]
[351143036,1738349461562,-500.0,0.00018354,2]
[351143037,1738349461571,-500.0,0.00018354,2]
[351143038,1738349461580,-500.0,0.00018354,2]
[351143039,1738349461590,-500.0,0.00018354,2]
[351143040,1738349461600,-1563.77,0.00018354,2]
[351143041,1738349461609,-500.0,0.00018355,2]
[351143042,1738349461621,-500.0,0.00018355,2]
[351143043,1738349461630,-500.0,0.00018355,2]
[351143044,1738349461639,-500.0,0.00018355,2]
[351143045,1738349461649,-500.0,0.00018355,2]
[351143046,1738349461658,-500.0,0.00018355,2]
[351143047,1738349461668,-500.0,0.00018355,2]
[351143048,1738349461678,-500.0,0.00018355,2]
[351143049,1738349461687,-500.0,0.00018355,2]
[351143050,1738349461696,-500.0,0.00018355,2]
[351143051,1738349461706,-500.0,0.00018355,2]
[351143052,1738349461716,-500.0,0.00018355,2]
[351143053,1738349461726,-500.0,0.00018355,2]
[351143054,1738349461736,-500.0,0.00018355,2]
[351143055,1738349461747,-500.0,0.00018355,2]
[351143056,1738349461757,-500.0,0.00018355,2]
[351143057,1738349461767,-593.2,0.00018355,2]
[351143058,1738349461777,-619.76,0.00018355,2]
[351143059,1738349461787,-643.92,0.00018355,2]
[351143060,1738349461798,-189.36,0.00018355,2]
[351143061,1738349461807,-702.2,0.00018355,2]
[351143062,1738349461818,-500.0,0.00018355,2]
[351143063,1738349461827,-500.0,0.00018355,2]
[351143064,1738349461835,-934.8,0.00018355,2]
[351143065,1738349461844,-500.0,0.00018355,2]
[351143066,1738349461853,-500.0,0.00018355,2]
[351143067,1738349461863,-500.0,0.00018356,2]
[351143068,1738349461878,-500.0,0.00018356,2]
[351143069,1738349461888,-268.64,0.00018356,2]
[351143070,1738349461898,-626.85,0.00018356,2]
[351143071,1738349461911,-500.0,0.00018356,2]
[351143072,1738349461920,-500.0,0.00018356,2]
[351143073,1738349461930,-500.0,0.00018356,2]
[351143074,1738349461940,-500.0,0.00018356,2]
[351143075,1738349461949,-419.94,0.00018356,2]
[351143076,1738349461958,-500.0,0.00018356,2]
[351143077,1738349461968,-1016.67996698,0.0001839,2]
[351143078,1738349461977,-500.0,0.00018392,2]
[351143079,1738349461986,-343.65,0.00018392,2]
[351143080,1738349461996,-501.67,0.00018392,2]
[351143081,1738349462005,-850.9,0.00018392,2]
[351143082,1738349462015,-510.62,0.00018392,2]
[351143083,1738349462025,-498.57413553,0.00018392,2]
[351143084,1738349462034,-544.88,0.00018425,2]
[351143085,1738349462044,-2293.73340376,0.00018452,2]
[351143086,1738349462054,-500.0,0.0001849,2]
[351143087,1738349462064,-500.0,0.0001849,2]
[351143088,1738349462074,-500.0,0.0001849,2]
[351143089,1738349462084,-500.0,0.0001849,2]
[351143090,1738349462094,-500.0,0.00018491,2]
[351143091,1738349462104,-500.0,0.00018491,2]
[351143092,1738349462113,-533.98,0.00018491,2]
[351143093,1738349462129,-500.0,0.00018491,2]
[351143094,1738349462139,-500.0,0.00018491,2]
[351143095,1738349462147,-500.0,0.00018491,2]
[351143096,1738349462156,-193.76,0.00018491,2]
[351143097,1738349462165,-500.0,0.00018491,2]
[351143098,1738349462175,-1563.77,0.00018491,2]
[351143099,1738349462184,-500.0,0.00018492,2]
[351143100,1738349462193,-500.0,0.00018492,2]
[351143101,1738349462203,-500.0,0.00018492,2]
[351143102,1738349462213,-500.0,0.00018492,2]
[351143103,1738349462223,-500.0,0.00018492,2]
[351143104,1738349462232,-488.32,0.00018492,2]
[351143105,1738349462241,-500.0,0.00018492,2]
[351143106,1738349462251,-500.0,0.00018492,2]
[351143107,1738349462260,-316.4,0.00018492,2]
[351143108,1738349462270,-500.0,0.00018492,2]
[351143109,1738349462280,-500.0,0.00018492,2]
[351143110,1738349462289,-500.0,0.00018492,2]
[351143111,1738349462300,-500.0,0.00018492,2]
[351143112,1738349462309,-500.0,0.00018492,2]
[351143113,1738349462319,-702.2,0.00018492,2]
[351143114,1738349462329,-316.54,0.00018492,2]
[351143115,1738349462338,-500.0,0.00018492,2]
[351143116,1738349462347,-934.8,0.00018492,2]
[351143117,1738349462357,-154.22241758,0.00018492,2]
[351143118,1738349462370,-500.0,0.00018492,2]
[351143119,1738349462379,-500.0,0.00018493,2]
[351143120,1738349462389,-500.0,0.00018493,2]
[351143121,1738349462399,-626.85,0.00018493,2]
[351143122,1738349462409,-171.39,0.00018493,2]
[351143123,1738349462419,-500.0,0.00018493,2]
[351143124,1738349462429,-500.0,0.00018493,2]
[351143125,1738349462438,-500.0,0.00018493,2]
[351143126,1738349462447,-500.0,0.00018493,2]
[351143127,1738349462457,-181.83839044,0.00018495,2]
[351143128,1738349462466,-500.0,0.00018529,2]
[351143129,1738349462476,-501.67,0.00018529,2]
[351143130,1738349462486,-850.9,0.00018529,2]
[351143131,1738349462495,-510.62,0.00018529,2]
[351143132,1738349462504,-544.88,0.00018562,2]
[351143133,1738349462514,-1611.84499987,0.00018624,2]
[351143134,1738349462628,-681.88840389,0.00018624,2]
[351143135,1738349462637,-253.32771874,0.00018627,2]
[351143136,1738349462649,-158.35228126,0.00018627,2]
[351143137,1738349462658,-500.0,0.00018627,2]
[351143138,1738349462667,-256.64771874,0.00018627,2]
[351143139,1738349462844,-153.7888286,0.00016574,2]
[351143140,1738349462853,-500.0,0.00016574,2]
[351143141,1738349462862,-500.0,0.00016574,2]
[351143142,1738349462879,-380.31,0.00016711,2]
[351143143,1738349462890,-243.35228126,0.00018627,2]
[351143144,1738349462900,-427.88,0.00018627,2]
[351143145,1738349462914,-500.0,0.00018628,2]
[351143146,1738349462923,-150.86726405,0.00018628,2]
[351143147,1738349462935,-284.39943926,0.00018628,2]
[351143148,1738349462947,-64.73329669,0.00018628,2]
[351143149,1738349462956,-245.68420331,0.00018628,2]
[351143150,1738349462966,-288.29579669,0.00018628,2]
[351143151,1738349462977,-206.85420331,0.00018628,2]
[351143152,1738349462988,-293.14579669,0.00018628,2]
[351143153,1738349462997,-370.7192833,0.00018628,2]
[351143154,1738349463009,-129.2807167,0.00018628,2]
[351143155,1738349463018,-500.0,0.00018628,2]
[351143156,1738349463027,-181.02,0.00018628,2]
[351143157,1738349463036,-1563.77,0.00018628,2]
[351143158,1738349463046,-85.50539552,0.00018629,2]
[351143159,1738349463057,-201.21460448,0.00018629,2]
[351143160,1738349463066,-500.0,0.00018629,2]
[351143161,1738349463076,-514.24,0.00018629,2]
[351143162,1738349463086,-500.0,0.00018629,2]
[351143163,1738349463096,-500.0,0.00018629,2]
[351143164,1738349463106,-276.07087553,0.00018629,2]
[351143165,1738349463120,-223.92912447,0.00018629,2]
[351143166,1738349463130,-500.0,0.00018629,2]
[351143167,1738349463139,-42.84699025,0.00018629,2]
[351143168,1738349463151,-140.03300975,0.00018629,2]
[351143169,1738349463160,-500.0,0.00018629,2]
[351143170,1738349463170,-154.4,0.00018629,2]
[351143171,1738349463179,-365.56699025,0.00018629,2]
[351143172,1738349463195,-134.43300975,0.00018629,2]
[351143173,1738349463206,-702.2,0.00018629,2]
[351143174,1738349463216,-500.0,0.00018629,2]